bitfinex/quotes_BTCUSD_20251231
["timestamp","ask_amount","ask_price","bid_price","bid_amount"]
[1767140137891,0.01132,88448.0,88438.0,0.13963]
[1767140138097,0.01132,88448.0,88439.0,0.01130722]
[1767140138302,0.0001122,88452.0,88441.0,0.15093697]
[1767140139058,0.0001122,88452.0,88444.0,0.15093658]
[1767140139214,2.2e-06,88452.0,88446.0,0.13963]
[1767140139846,2.2e-06,88452.0,88446.0,0.15093633]
[1767140140042,0.0001122,88459.0,88448.0,0.13963]
[1767140140602,0.0001122,88459.0,88449.0,0.41501597]
[1767140143523,0.0001122,88459.0,88450.0,0.13963]
[1767140144415,0.0001122,88459.0,88450.0,0.15093582]
[1767140144748,0.0001122,88459.0,88450.0,0.13963]
[1767140144966,0.000549,88450.0,88448.0,0.15095]
[1767140145140,0.0001122,88459.0,88448.0,0.1504]
[1767140145141,0.01141687,88459.0,88448.0,0.1504]
[1767140145374,0.0113048,88458.0,88448.0,0.01077]
[1767140145518,0.01141687,88459.0,88448.0,0.01077]
[1767140145722,0.01141687,88459.0,88441.0,0.01132]
[1767140145723,0.13806,88456.0,88441.0,0.01132]
[1767140145903,0.13806,88442.0,88435.0,0.0001122]
[1767140146313,0.14936684,88442.0,88435.0,0.0001122]
[1767140146929,0.13806,88442.0,88435.0,0.0001122]
[1767140147389,0.01132,88445.0,88435.0,0.0001122]
[1767140148397,0.42633597,88445.0,88435.0,0.0001122]
[1767140148773,0.57316243,88445.0,88435.0,0.0001122]
[1767140149123,0.01130671,88443.0,88430.0,0.13565584]
[1767140149323,0.41501597,88440.0,88430.0,0.13565584]
[1767140149468,0.41501597,88440.0,88429.0,0.00053062]
[1767140150076,0.42632307,88440.0,88429.0,0.00053062]
[1767140150346,0.01130722,88439.0,88429.0,0.00053062]
[1767140152117,0.42632307,88440.0,88429.0,0.00053062]
[1767140152335,0.01130722,88439.0,88429.0,0.00053062]
[1767140153759,0.42632307,88440.0,88429.0,0.00053062]
[1767140158789,0.41501597,88440.0,88429.0,0.00053062]
[1767140159817,0.42632307,88440.0,88429.0,0.00053062]
[1767140160609,0.0113071,88440.0,88429.0,0.00053062]
[1767140161014,0.01130697,88441.0,88429.0,0.00053062]
[1767140161483,0.01130684,88442.0,88429.0,0.00053062]
[1767140161691,0.01130697,88441.0,88429.0,0.00053062]
[1767140161865,0.01130684,88442.0,88429.0,0.00053062]
[1767140162654,0.01130697,88441.0,88429.0,0.00053062]
[1767140163646,0.01130684,88442.0,88429.0,0.00053062]
[1767140163851,0.01130671,88443.0,88430.0,0.14616]
[1767140164278,0.01130658,88444.0,88430.0,0.14616]
[1767140165193,0.20337236,88445.0,88430.0,0.14616]
[1767140165746,0.15814646,88445.0,88430.0,0.14616]
[1767140165893,0.01130658,88444.0,88430.0,0.14616]
[1767140166119,0.15814646,88445.0,88430.0,0.14616]
[1767140166765,0.01130658,88444.0,88430.0,0.14616]
[1767140167132,0.01130671,88443.0,88430.0,0.14616]
[1767140167334,0.01130658,88444.0,88430.0,0.14616]
[1767140168556,0.01,88440.0,88430.0,0.14616]
[1767140169543,0.009451,88440.0,88430.0,0.14616]
[1767140172982,0.009451,88440.0,88429.0,0.00053062]
[1767140174102,0.009451,88440.0,88429.0,0.14669062]
[1767140174880,0.01130722,88439.0,88429.0,0.14669062]
[1767140175086,0.0207581,88440.0,88429.0,0.14669062]
[1767140176032,0.009451,88440.0,88429.0,0.14669062]
[1767140177227,0.0207581,88440.0,88429.0,0.14669062]
[1767140177911,0.009451,88440.0,88429.0,0.14669062]
[1767140181994,0.008901,88440.0,88429.0,0.14669062]
[1767140182964,0.008901,88440.0,88429.0,0.15799912]
[1767140184693,0.008901,88440.0,88430.0,0.01130837]
[1767140185193,0.008901,88440.0,88429.0,0.15799912]
[1767140185974,0.008901,88440.0,88429.0,0.14669062]
[1767140189239,0.008901,88440.0,88429.0,0.15799912]
[1767140189803,0.008901,88440.0,88430.0,0.01130837]
[1767140189986,0.008901,88440.0,88430.0,0.15496837]
[1767140190425,0.008901,88440.0,88430.0,0.14366]
[1767140190634,0.008901,88440.0,88430.0,0.15496837]
[1767140191622,0.008901,88440.0,88430.0,0.14366]
[1767140193906,0.008901,88440.0,88430.0,0.15496837]
[1767140201674,0.008901,88440.0,88430.0,0.14366]
[1767140203075,0.000549,88430.0,88429.0,0.00053062]
[1767140203754,0.008901,88440.0,88429.0,0.00053062]
[1767140210978,0.008901,88440.0,88429.0,0.01183912]
[1767140211184,0.0001122,88452.0,88441.0,0.01130697]
[1767140211441,0.00861982,88452.0,88441.0,0.15252697]
[1767140211648,0.15471428,88462.0,88444.0,0.01130658]
[1767140211792,0.0114322,88459.0,88444.0,0.14122]
[1767140211996,0.0113048,88458.0,88444.0,0.14122]
[1767140212218,0.1547148,88458.0,88444.0,0.14122]
[1767140212644,0.01130492,88457.0,88444.0,0.14122]
[1767140213026,0.01130505,88456.0,88439.0,0.22038304]
[1767140213235,0.01130505,88456.0,88439.0,0.16384722]
[1767140213434,0.01130505,88456.0,88440.0,0.0113071]
[1767140213646,0.01130505,88456.0,88439.0,0.16384722]
[1767140213647,0.01130518,88455.0,88439.0,0.16384722]
[1767140213840,0.01130543,88453.0,88439.0,0.15254]
[1767140214095,0.41502526,88450.0,88439.0,0.010771]
[1767140214299,0.0113062,88447.0,88439.0,0.010771]
[1767140214523,0.14341,88447.0,88439.0,0.010771]
[1767140215704,0.14341,88443.0,88439.0,0.010771]
[1767140217520,0.15471671,88443.0,88429.0,0.00053062]
[1767140217705,0.15471671,88443.0,88434.0,0.01132]
[1767140217913,0.01130684,88442.0,88434.0,0.01132]
[1767140218726,0.15471671,88443.0,88434.0,0.01132]
[1767140219688,0.01130684,88442.0,88434.0,0.01132]
[1767140220369,0.14341,88443.0,88434.0,0.01132]
[1767140220731,0.01130684,88442.0,88434.0,0.01132]
[1767140221166,0.15471671,88443.0,88435.0,2e-07]
[1767140221648,0.14341,88443.0,88435.0,2e-07]
[1767140221848,0.15015684,88442.0,88435.0,2e-07]
[1767140222053,0.13885,88442.0,88435.0,2e-07]
[1767140222417,0.15015684,88442.0,88435.0,2e-07]
[1767140222720,0.13885,88442.0,88435.0,2e-07]
[1767140225890,0.15015684,88442.0,88435.0,2e-07]
[1767140226087,0.15015684,88442.0,88429.0,0.00053062]
[1767140226088,0.13885,88433.0,88429.0,0.00053062]
[1767140226288,0.13885,88432.0,88429.0,9.262e-05]
[1767140227421,0.01130761,88436.0,88429.0,9.262e-05]
[1767140228692,0.15015735,88438.0,88429.0,9.262e-05]
[1767140229503,0.13885,88438.0,88429.0,9.262e-05]
[1767140231671,0.15015735,88438.0,88429.0,9.262e-05]
[1767140231887,0.15015748,88437.0,88429.0,9.262e-05]
[1767140232062,0.01130761,88436.0,88429.0,9.262e-05]
[1767140232263,0.15015748,88437.0,88429.0,9.262e-05]
[1767140232639,0.01130761,88436.0,88429.0,9.262e-05]
[1767140234268,0.01130774,88435.0,88429.0,9.262e-05]
[1767140234471,0.01130786,88434.0,88429.0,9.262e-05]
[1767140234678,0.15015799,88433.0,88429.0,9.262e-05]
[1767140238137,0.13885,88433.0,88429.0,9.262e-05]
[1767140238276,0.15015799,88433.0,88429.0,9.262e-05]
[1767140238465,0.13885,88433.0,88429.0,9.262e-05]
[1767140239269,0.15015799,88433.0,88429.0,9.262e-05]
[1767140239501,0.13885,88433.0,88429.0,9.262e-05]
[1767140245890,0.01130748,88437.0,88429.0,9.262e-05]
[1767140247384,0.01130761,88436.0,88429.0,9.262e-05]
[1767140247818,0.14986735,88438.0,88429.0,9.262e-05]
[1767140248206,0.01130748,88437.0,88429.0,9.262e-05]
[1767140248427,0.14986735,88438.0,88429.0,9.262e-05]
[1767140249089,0.01130748,88437.0,88429.0,9.262e-05]
[1767140249493,0.14986735,88438.0,88429.0,9.262e-05]
[1767140249696,0.01130748,88437.0,88429.0,9.262e-05]
[1767140249856,0.14986735,88438.0,88429.0,9.262e-05]
[1767140250473,0.01130722,88439.0,88429.0,9.262e-05]
[1767140250831,0.01130735,88438.0,88429.0,9.262e-05]
[1767140251177,0.01130722,88439.0,88429.0,9.262e-05]
[1767140251543,0.42627834,88440.0,88429.0,9.262e-05]
[1767140252670,0.01130722,88439.0,88429.0,9.262e-05]
[1767140253065,0.42627834,88440.0,88429.0,9.262e-05]
[1767140254109,0.0113071,88440.0,88429.0,9.262e-05]
[1767140254239,0.41497124,88440.0,88429.0,9.262e-05]
[1767140254446,0.42627834,88440.0,88429.0,9.262e-05]
[1767140255233,0.01130735,88438.0,88429.0,9.262e-05]
[1767140256391,0.06784603,88436.0,88429.0,9.262e-05]
[1767140256592,0.14986786,88434.0,88429.0,9.262e-05]
[1767140256920,0.14986799,88433.0,88429.0,9.262e-05]
[1767140257372,0.13856,88433.0,88429.0,9.262e-05]
[1767140257537,0.01130812,88432.0,88429.0,9.262e-05]
[1767140260743,0.01130774,88435.0,88422.0,0.0001122]
[1767140260744,0.14986863,88428.0,88422.0,0.0001122]
[1767140260944,0.13856,88425.0,88422.0,0.0001122]
[1767140261105,0.01130889,88426.0,88422.0,0.0001122]
[1767140261304,0.14986876,88427.0,88422.0,0.0001122]
[1767140262350,0.14986901,88425.0,88422.0,0.0001122]
[1767140263722,0.2064141,88425.0,88422.0,0.0001122]
[1767140264623,0.13856,88424.0,88422.0,2e-07]
[1767140264817,0.19510637,88423.0,88422.0,2e-07]
[1767140265019,0.01131068,88412.0,88399.0,0.01132]
[1767140265337,0.41497124,88410.0,88399.0,0.01132]
[1767140265533,0.01131055,88413.0,88399.0,0.01132]
[1767140265745,0.41497124,88410.0,88399.0,0.01132]
[1767140266449,0.41442124,88410.0,88399.0,0.01132]
[1767140267301,0.01132,88416.0,88400.0,0.14711221]
[1767140267623,0.01132,88416.0,88404.0,0.0113117]
[1767140267751,0.01132,88416.0,88405.0,0.14711157]
[1767140268321,0.0001122,88418.0,88405.0,0.14711157]
[1767140268615,0.0001122,88438.0,88409.0,0.1358]
[1767140268616,0.01130927,88423.0,88409.0,0.1358]
[1767140268825,0.0678557,88423.0,88409.0,0.1358]
[1767140268979,0.41497124,88420.0,88409.0,0.1358]
[1767140270720,0.01130978,88419.0,88409.0,0.1358]
[1767140270864,0.01130991,88418.0,88409.0,0.1358]
[1767140272773,0.01130978,88419.0,88407.0,0.01132]
[1767140273067,0.01131004,88417.0,88407.0,0.01132]
[1767140273293,0.01130991,88418.0,88407.0,0.01132]
[1767140273937,0.01131004,88417.0,88407.0,0.01132]
[1767140274140,0.01130991,88418.0,88407.0,0.01132]
[1767140274937,0.01131004,88417.0,88407.0,0.01132]
[1767140275698,0.01131017,88416.0,88407.0,0.01132]
[1767140275901,0.0113108,88411.0,88401.0,0.0001122]
[1767140276102,0.01131093,88410.0,88401.0,0.0001122]
[1767140276235,0.42628204,88411.0,88401.0,0.0001122]
[1767140276804,0.14929,88404.0,88401.0,2e-07]
[1767140277371,0.1606017,88404.0,88401.0,2e-07]
[1767140277741,0.14929,88402.0,88401.0,2e-07]
[1767140277995,0.14929,88399.0,88395.0,0.0001122]
[1767140278698,0.01131196,88402.0,88395.0,0.0001122]
[1767140279258,0.01131208,88401.0,88395.0,0.0001122]
[1767140279507,0.01131221,88400.0,88395.0,0.0001122]
[1767140279906,0.01131208,88401.0,88395.0,0.0001122]
[1767140280347,0.01131234,88399.0,88395.0,0.0001122]
[1767140280702,0.01131208,88401.0,88395.0,0.0001122]
[1767140280885,0.01131221,88400.0,88395.0,0.00046748]
[1767140281119,0.07919145,88403.0,88388.0,0.0001122]
[1767140281120,0.01131336,88391.0,88388.0,0.0001122]
[1767140281323,0.01131336,88391.0,88388.0,0.00017669]
[1767140281324,0.05656799,88390.0,88388.0,0.00017669]
[1767140281455,0.14444,88390.0,88388.0,0.00017669]
[1767140282068,0.14444,88390.0,88388.0,0.00013386]
[1767140282656,0.01131375,88388.0,88380.0,0.01172]
[1767140283040,0.14444,88390.0,88380.0,0.01172]
[1767140283451,0.41497124,88391.0,88380.0,0.01172]
[1767140284221,0.42628345,88400.0,88382.0,0.14883452]
[1767140284414,0.01131247,88398.0,88382.0,0.13752]
[1767140284612,0.14444,88395.0,88381.0,0.0001122]
[1767140285257,0.14444,88395.0,88381.0,0.01142684]
[1767140285462,0.14444,88395.0,88381.0,0.0001122]
[1767140286227,0.14444,88395.0,88381.0,0.01142684]
[1767140286775,0.14444,88395.0,88382.0,0.01131452]
[1767140287886,0.14444,88395.0,88383.0,0.01131439]
[1767140288982,0.14444,88395.0,88384.0,0.01131426]
[1767140289807,0.14444,88395.0,88381.0,0.14894684]
[1767140291021,0.14444,88395.0,88381.0,0.1376322]
[1767140291635,0.15575285,88395.0,88381.0,0.1376322]
[1767140292216,0.14444,88395.0,88381.0,0.1376322]
[1767140293164,0.15575285,88395.0,88381.0,0.1376322]
[1767140294009,0.14444,88395.0,88381.0,0.1376322]
[1767140294919,0.01131298,88394.0,88381.0,0.1376322]
[1767140295348,0.15575285,88395.0,88381.0,0.1376322]
[1767140297379,0.01131298,88394.0,88381.0,0.1376322]
[1767140297579,0.01131336,88391.0,88381.0,0.0001122]
[1767140297773,0.01131349,88390.0,88381.0,0.0001122]
[1767140298012,0.14285,88385.0,88380.0,0.00902246]
[1767140298494,0.14285,88385.0,88369.0,0.01131618]
[1767140298495,0.01131516,88377.0,88368.0,0.0001122]
[1767140298720,0.01131592,88371.0,88360.0,0.00023953]
[1767140298912,0.14285,88370.0,88360.0,0.00023953]
[1767140299490,0.15416541,88375.0,88360.0,0.00023953]
[1767140299710,0.14285,88375.0,88360.0,0.00023953]
[1767140299871,0.15416541,88375.0,88360.0,0.00023953]
[1767140300284,0.14285,88375.0,88360.0,0.00023953]
[1767140300713,0.01132,88376.0,88361.0,0.01142941]
[1767140301053,0.01131464,88381.0,88363.0,0.15673695]
[1767140301191,0.01136,88380.0,88369.0,0.01131618]
[1767140301392,0.0114666,88380.0,88368.0,0.01131631]
[1767140301792,0.0001066,88380.0,88368.0,0.01131631]
[1767140302015,0.01136,88379.0,88370.0,0.01131605]
[1767140302247,0.01136,88379.0,88368.0,0.01131631]
[1767140302740,0.01136,88379.0,88369.0,0.01131618]
[1767140302941,0.01136,88379.0,88369.0,0.06789699]
[1767140303144,0.0001066,88380.0,88370.0,0.01131605]
[1767140303344,0.0001066,88380.0,88375.0,0.01131541]
[1767140303772,0.0001066,88380.0,88374.0,0.01131554]
[1767140303924,0.0001066,88380.0,88375.0,0.01131541]
[1767140304863,0.0001066,88380.0,88374.0,0.01131554]
[1767140305207,0.0001066,88380.0,88373.0,0.06789402]
[1767140305208,0.0001066,88380.0,88373.0,0.01131567]
[1767140305763,0.0001066,88380.0,88374.0,0.01131554]
[1767140306314,0.0001066,88380.0,88373.0,0.01131567]
[1767140306563,0.0001066,88380.0,88372.0,0.0113158]
[1767140306742,0.0001066,88380.0,88373.0,0.01131567]
[1767140306947,0.0001066,88380.0,88372.0,0.0113158]
[1767140307314,0.0001066,88380.0,88369.0,0.01136]
[1767140308714,0.0001066,88380.0,88363.0,0.06790124]
[1767140308715,0.15526518,88369.0,88360.0,0.00012878]
[1767140308891,0.14285,88366.0,88360.0,0.00012878]
[1767140309314,0.14285,88374.0,88360.0,0.00012878]
[1767140309858,0.14285,88374.0,88362.0,0.01131708]
[1767140310060,0.14285,88374.0,88361.0,0.01131721]
[1767140310177,0.14285,88374.0,88360.0,0.01144611]
[1767140310378,0.15416554,88374.0,88360.0,0.00012878]
[1767140310819,0.01131567,88373.0,88360.0,0.00012878]
[1767140311175,0.21074539,88372.0,88360.0,0.00012878]
[1767140311376,0.14285,88372.0,88360.0,0.00012878]
[1767140312255,0.1541658,88372.0,88360.0,0.00012878]
[1767140312758,0.14285,88372.0,88360.0,0.00012878]
[1767140313764,0.1541658,88372.0,88360.0,0.00012878]
[1767140313961,0.01131605,88370.0,88360.0,0.00012878]
[1767140314120,0.01131592,88371.0,88360.0,0.00012878]
[1767140314525,0.15416605,88370.0,88360.0,0.00012878]
[1767140314746,0.14285,88370.0,88360.0,0.00012878]
[1767140315336,0.15416605,88370.0,88360.0,0.00012878]
[1767140316026,0.14285,88370.0,88360.0,0.00012878]
[1767140316926,0.01131618,88369.0,88360.0,0.00012878]
[1767140317274,0.15416605,88370.0,88360.0,0.00012878]
[1767140318287,0.01131631,88368.0,88360.0,0.00012878]
[1767140318630,0.15416605,88370.0,88360.0,0.00012878]
[1767140318850,0.14285,88370.0,88360.0,0.00012878]
[1767140319050,0.01131567,88373.0,88360.0,0.00012878]
[1767140319309,0.0113158,88372.0,88360.0,0.00012878]
[1767140319510,0.1541658,88372.0,88360.0,0.00012878]
[1767140320552,0.01131592,88371.0,88360.0,0.00012878]
[1767140320756,0.1541658,88372.0,88360.0,0.00012878]
[1767140321150,0.01131592,88371.0,88360.0,0.00012878]
[1767140322637,0.1541658,88372.0,88360.0,0.00012878]
[1767140322826,0.0001066,88380.0,88365.0,0.01131669]
[1767140323043,0.0001066,88380.0,88366.0,0.14542]
[1767140323437,0.01142137,88380.0,88366.0,0.14542]
[1767140323786,0.01131528,88376.0,88366.0,0.14542]
[1767140323982,0.0001066,88380.0,88366.0,0.14542]
[1767140324183,0.0113149,88379.0,88366.0,0.14542]
[1767140325028,0.0001066,88380.0,88368.0,0.01131631]
[1767140325227,0.0001066,88380.0,88369.0,0.15673618]
[1767140325427,0.0001066,88380.0,88369.0,0.14542]
[1767140326219,0.01142137,88380.0,88365.0,0.01136]
[1767140326419,0.0113149,88379.0,88365.0,0.01136]
[1767140326825,0.0001066,88380.0,88366.0,0.01131656]
[1767140327046,0.0001066,88380.0,88369.0,0.15268618]
[1767140327269,0.01136,88385.0,88372.0,0.14137]
[1767140327422,0.01136,88385.0,88374.0,0.01131554]
[1767140327630,0.01136,88385.0,88375.0,0.14137]
[1767140328426,0.02267375,88388.0,88375.0,0.14137]
[1767140328787,0.04699073,88388.0,88375.0,0.14137]
[1767140329466,0.03567698,88388.0,88375.0,0.14137]
[1767140329675,0.01136,88388.0,88375.0,0.14137]
[1767140330089,0.01136,88390.0,88375.0,0.15268541]
[1767140330294,0.01136,88390.0,88354.0,2.2e-06]
[1767140330295,0.05658546,88362.0,88354.0,2.2e-06]
[1767140330497,3.2e-06,88354.0,88344.0,0.0004]
[1767140330656,0.01131708,88362.0,88348.0,0.0001686]
[1767140330856,0.01131759,88358.0,88348.0,0.0001686]
[1767140331079,0.01131733,88360.0,88348.0,0.0001686]
[1767140331255,0.01131721,88361.0,88348.0,0.0001686]
[1767140331597,0.02267682,88364.0,88348.0,0.1415386]
[1767140331893,0.01131733,88360.0,88349.0,0.15273]
[1767140332058,0.01131759,88358.0,88349.0,0.15273]
[1767140332259,0.01131772,88357.0,88349.0,0.15273]
[1767140332480,0.01131759,88358.0,88349.0,0.15273]
[1767140332703,0.01131785,88356.0,88349.0,0.15273]
[1767140332902,0.01131772,88357.0,88349.0,0.01092]
[1767140333402,0.01131785,88356.0,88349.0,0.01092]
[1767140333579,0.0113181,88354.0,88349.0,0.01092]
[1767140334588,0.01131823,88353.0,88349.0,0.01092]
[1767140334783,0.01131836,88352.0,88349.0,0.01092]
[1767140335184,0.01131797,88355.0,88349.0,0.01092]
[1767140335740,0.01131785,88356.0,88349.0,0.01092]
[1767140336565,0.01131746,88359.0,88349.0,0.01092]
[1767140336960,0.01131746,88359.0,88348.0,0.0001686]
[1767140337093,0.01131759,88358.0,88348.0,0.0001686]
[1767140337604,0.01131772,88357.0,88348.0,0.0001686]
[1767140337804,0.05658637,88361.0,88348.0,0.0001686]
[1767140337996,0.05658637,88361.0,88357.0,0.000549]
[1767140338197,0.06790524,88359.0,88357.0,0.000549]
[1767140338450,0.06790524,88359.0,88348.0,0.0001686]
[1767140338451,0.01131785,88356.0,88348.0,0.0001686]
[1767140338804,0.01131797,88355.0,88348.0,0.0001686]
[1767140339235,0.01131785,88356.0,88348.0,0.0001686]
[1767140339435,0.01131797,88355.0,88348.0,0.0001686]
[1767140339956,0.01131785,88356.0,88348.0,0.0001686]
[1767140340212,0.01131772,88357.0,88348.0,0.0001686]
[1767140340346,0.01131759,88358.0,88348.0,0.0001686]
[1767140341079,0.01131772,88357.0,88348.0,0.0001686]
[1767140342478,0.01131746,88359.0,88348.0,0.1398786]
[1767140342682,0.05658332,88366.0,88359.0,0.000549]
[1767140342862,0.01131695,88363.0,88359.0,0.000549]
[1767140343064,0.01131695,88363.0,88354.0,0.13971]
[1767140343286,0.01131644,88367.0,88354.0,0.13971]
[1767140343702,0.01131695,88363.0,88354.0,0.13971]
[1767140344015,0.01131669,88365.0,88354.0,0.13971]
[1767140344770,0.02267656,88366.0,88354.0,0.13971]
[1767140345010,0.01136,88366.0,88354.0,0.13971]
[1767140345225,0.01131644,88367.0,88354.0,0.13971]
[1767140345363,0.01136,88366.0,88354.0,0.13971]
[1767140345563,0.01131631,88368.0,88354.0,0.13971]
[1767140345781,0.02267644,88367.0,88354.0,0.13971]
[1767140346204,0.01131656,88366.0,88354.0,0.13971]
[1767140346997,0.01131669,88365.0,88354.0,0.13971]
[1767140347747,0.01131682,88364.0,88354.0,0.13971]
[1767140347902,0.01131669,88365.0,88354.0,0.13971]
[1767140348643,0.01131695,88363.0,88354.0,0.13971]
[1767140348792,0.01131682,88364.0,88354.0,0.13971]
[1767140348986,0.01131669,88365.0,88354.0,0.13971]
[1767140350644,0.01131656,88366.0,88354.0,0.13971]
[1767140351348,0.01136,88367.0,88354.0,0.13971]
[1767140351559,0.01136,88368.0,88358.0,0.13971]
[1767140352093,0.0001122,88371.0,88359.0,0.13971]
[1767140352316,0.0114722,88371.0,88361.0,0.13971]
[1767140355648,0.02278812,88371.0,88360.0,0.41569387]
[1767140355850,0.02278812,88371.0,88356.0,0.13971]
[1767140356317,0.0114722,88371.0,88356.0,0.15102785]
[1767140356855,0.0114722,88371.0,88354.0,0.0113181]
[1767140356856,0.15475605,88370.0,88354.0,0.0113181]
[1767140357170,0.01131618,88369.0,88353.0,0.16130823]
[1767140357357,0.57044992,88370.0,88353.0,0.16130823]
[1767140357556,0.01131618,88369.0,88353.0,0.14999]
[1767140357758,0.01131618,88369.0,88353.0,0.16130823]
[1767140358354,0.01131618,88369.0,88354.0,0.13863]
[1767140358560,0.15475605,88370.0,88354.0,0.13863]
[1767140358974,0.01131618,88369.0,88354.0,0.13863]
[1767140359230,0.15475605,88370.0,88354.0,0.1499481]
[1767140359432,0.15475605,88370.0,88354.0,0.13863]
[1767140359433,0.16475605,88370.0,88354.0,0.13863]
[1767140360636,0.16475605,88370.0,88354.0,0.1499481]
[1767140361771,0.01131618,88369.0,88354.0,0.13863]
[1767140362190,0.16475605,88370.0,88354.0,0.13863]
[1767140362391,0.16475605,88370.0,88354.0,0.1499481]
[1767140362728,0.58044992,88370.0,88354.0,0.1499481]
[1767140362937,0.58044992,88370.0,88354.0,0.13863]
[1767140363575,0.01131618,88369.0,88354.0,0.13863]
[1767140364256,0.58044992,88370.0,88354.0,0.1499481]
[1767140364440,0.01131631,88368.0,88353.0,0.01136]
[1767140364617,0.01131695,88363.0,88353.0,0.01136]
[1767140364821,0.14344,88362.0,88353.0,0.01136]
[1767140365018,0.14344,88361.0,88353.0,0.01136]
[1767140366220,0.01131682,88364.0,88353.0,0.01136]
[1767140366543,0.15475721,88361.0,88353.0,0.01136]
[1767140366777,0.14344,88361.0,88353.0,0.01136]
[1767140367673,0.15475721,88361.0,88353.0,0.01136]
[1767140367868,0.14344,88361.0,88353.0,0.01136]
[1767140368433,0.01131682,88364.0,88353.0,0.01136]
[1767140368977,0.14344,88366.0,88353.0,0.01136]
[1767140369140,0.01131669,88365.0,88353.0,0.01136]
[1767140369367,0.14344,88366.0,88353.0,0.01136]
[1767140371576,0.01131669,88365.0,88353.0,0.01136]
[1767140372416,0.15475669,88365.0,88353.0,0.01136]
[1767140372615,0.01131644,88367.0,88353.0,0.01136]
[1767140372817,0.14344,88367.0,88353.0,0.01136]
[1767140373246,0.01131656,88366.0,88353.0,0.01136]
[1767140373567,0.14344,88365.0,88353.0,0.01136]
[1767140373768,0.15475669,88365.0,88353.0,0.01136]
[1767140375744,0.01131733,88360.0,88353.0,0.010811]
[1767140375928,0.15475721,88361.0,88353.0,0.010811]
[1767140376497,0.14344,88361.0,88353.0,0.010811]
[1767140376698,0.01131695,88363.0,88353.0,0.010811]
[1767140377039,0.01131682,88364.0,88353.0,0.010811]
[1767140380878,0.01131669,88365.0,88353.0,0.010811]
[1767140381037,0.01131656,88366.0,88353.0,0.010811]
[1767140382656,0.15475644,88367.0,88353.0,0.010811]
[1767140383071,0.14344,88367.0,88353.0,0.010811]
[1767140383643,0.15475644,88367.0,88353.0,0.010811]
[1767140383944,0.14344,88362.0,88348.0,0.0001686]
[1767140384284,0.01131797,88355.0,88348.0,0.0001686]
[1767140384483,0.0113181,88354.0,88348.0,0.0001686]
[1767140384629,0.14344,88357.0,88348.0,0.0001686]
[1767140384829,0.41569387,88360.0,88348.0,0.0001686]
[1767140385034,0.4270112,88360.0,88348.0,0.0001686]
[1767140385651,0.01131746,88359.0,88348.0,0.0001686]
[1767140386321,0.01136,88361.0,88348.0,0.0001686]
[1767140386500,0.02267721,88361.0,88348.0,0.0001686]
[1767140386923,0.01131733,88360.0,88348.0,0.0001686]
[1767140388315,0.01131746,88359.0,88348.0,0.0001686]
[1767140388630,0.01131733,88360.0,88348.0,0.0001686]
[1767140388809,0.4270112,88360.0,88349.0,0.13977]
[1767140389229,0.41569387,88360.0,88349.0,0.13977]
[1767140389425,0.01131746,88359.0,88349.0,0.13977]
[1767140389625,0.01131759,88358.0,88349.0,0.13977]
[1767140389806,0.01131772,88357.0,88348.0,0.0001686]
[1767140390214,0.01131785,88356.0,88348.0,6e-07]
[1767140390801,0.14739772,88357.0,88348.0,6e-07]
[1767140392460,0.0113181,88354.0,88348.0,6e-07]
[1767140392713,0.01131797,88355.0,88348.0,6e-07]
[1767140392914,0.13608,88352.0,88348.0,6e-07]
[1767140394917,0.14739772,88357.0,88348.0,6e-07]
[1767140395450,0.01131785,88356.0,88348.0,6e-07]
[1767140395736,0.01131797,88355.0,88348.0,6e-07]
[1767140395887,0.01131785,88356.0,88348.0,6e-07]
[1767140396719,0.14739785,88356.0,88348.0,6e-07]
[1767140397240,0.13608,88356.0,88348.0,6e-07]
[1767140398205,0.01131759,88358.0,88348.0,6e-07]
[1767140399465,0.01131746,88359.0,88348.0,6e-07]
[1767140400646,0.14744,88361.0,88348.0,6e-07]
[1767140400852,0.4270112,88360.0,88348.0,6e-07]
[1767140401396,0.01131746,88359.0,88348.0,6e-07]
[1767140401797,0.01131759,88358.0,88348.0,6e-07]
[1767140401955,0.18645364,88358.0,88348.0,6e-07]
[1767140402151,0.01131772,88357.0,88348.0,6e-07]
[1767140402357,0.14848772,88357.0,88348.0,6e-07]
[1767140402577,0.13717,88353.0,88348.0,6e-07]
[1767140405959,0.01131759,88358.0,88348.0,6e-07]
[1767140406196,0.14848759,88358.0,88348.0,6e-07]
[1767140406956,0.01131772,88357.0,88348.0,6e-07]
[1767140407425,0.14848759,88358.0,88348.0,6e-07]
[1767140407840,0.13717,88358.0,88348.0,6e-07]
[1767140408047,0.02267721,88361.0,88348.0,0.1413006]
[1767140408259,0.06794517,88363.0,88348.0,0.1413006]
[1767140408665,0.01142902,88364.0,88363.0,0.141468]
[1767140408666,0.0001122,88364.0,88363.0,0.141468]
[1767140408876,2.2e-06,88364.0,88363.0,0.141468]
[1767140409086,2.2e-06,88364.0,88363.0,0.1413]
[1767140410825,2.2e-06,88364.0,88363.0,0.15266]
[1767140412833,0.01131426,88384.0,88368.0,0.1413]
[1767140413267,0.01142633,88385.0,88368.0,0.1413]
[1767140413462,0.01131426,88384.0,88368.0,0.1413]
[1767140413929,0.01142633,88385.0,88370.0,0.1413]
[1767140414134,0.01142633,88385.0,88371.0,0.15266]
[1767140415558,0.0001122,88385.0,88371.0,0.15266]
[1767140415780,0.0001122,88385.0,88371.0,0.16397592]
[1767140416001,2e-07,88385.0,88380.0,0.1413]
[1767140416212,2e-07,88385.0,88380.0,0.15266]
[1767140416435,2e-07,88385.0,88383.0,0.13961]
[1767140417305,8.072e-05,88385.0,88383.0,0.13961]
[1767140420488,2.2e-06,88391.0,88388.0,0.01131375]
[1767140420827,2.2e-06,88391.0,88389.0,0.15097]
[1767140425659,2.2e-06,88391.0,88389.0,0.01136]
[1767140425839,2.2e-06,88391.0,88389.0,0.15097]
[1767140426763,2.2e-06,88391.0,88389.0,0.010823]
[1767140431768,2.2e-06,88391.0,88390.0,0.13961]
[1767140431936,2.2e-06,88391.0,88389.0,0.010823]
[1767140432838,0.0001122,88398.0,88389.0,0.010823]
[1767140433038,2e-07,88398.0,88395.0,0.01131285]
[1767140434266,2e-07,88398.0,88396.0,0.01136]
[1767140434614,2e-07,88398.0,88396.0,0.011248]
[1767140441065,0.1394802,88398.0,88396.0,0.01136]
[1767140441269,2e-07,88398.0,88396.0,0.01136]
[1767140442485,2e-07,88398.0,88396.0,0.01131728]
[1767140445189,2e-07,88398.0,88396.0,0.01127553]
[1767140449387,2e-07,88398.0,88396.0,0.01123344]
[1767140458376,0.01131272,88396.0,88383.0,0.14306]
[1767140458500,0.13669,88391.0,88380.0,0.01132]